[Event "13th Chennai Open 2022"]
[Site "Chennai"]
[Date "2022.06.20"]
[Round "2.17"]
[White "Jaivant R"]
[Black "Rajesh, V A V"]
[Result "1/2-1/2"]
[ECO "C54"]
[WhiteElo "1565"]
[BlackElo "2358"]
[Annotator "TA"]
[PlyCount "141"]
[EventDate "2022.06.19"]
[EventType "swiss"]
[EventCountry "IND"]
[SourceTitle "playchess.com"]
[Source "ChessBase"]
[SourceQuality "1"]
[TimeControl "5400+30"]

{[%evp 17,141,0,0,6,0,-17,-27,-22,-18,-19,0,0,-2,-31,-49,-68,-74,-60,-54,-54,-63,-49,-54,-70,-56,-265,-265,-283,-267,-280,-279,-276,-248,-258,-266,-252,-252,-267,-252,-235,-263,-264,-268,-286,-273,-345,-347,-347,-335,-347,-347,-347,-347,-347,-347,-412,-383,-386,-402,-587,-587,-587,-584,-697,-676,-600,-591,-620,-681,-715,-730,-755,-737,-658,-631,-818,-817,-877,-712,-733,-856,-1303,-1299,-999,-796,-786,-667,-1428,-1257,-2149,-1980,-1714,-1427,-29970,-29971,-29971,-29971,-29971,-29971,-29971,-29974,-29975,-29975,-29974,-29973,-29975,-29975,-29976,-29977,-29977,-29977,-29976,-29978,-29978,-29979,-29979,-29980,-29979,-8,-8,-8,-8,-8,-8,-8,-8]} 1. e4 {[%emt 0:00:05]} e5 {[%emt 0:00:07]} 2. Nf3 {[%emt 0:00:16]} Nc6 {[%emt 0:00:06]} 3. Bc4 {[%emt 0:00:09]} Bc5 {[%emt 0:00:17]} 4. c3 {[%emt 0:00:19]} Nf6 {[%emt 0:00:06]} 5. d4 {[%emt 0:00:03]} exd4 {[%emt 0:00:26]} 6. e5 {[%emt 0:00:05]} d5 {[%emt 0:00:33]} 7. Bb5 {[%emt 0:00:07]} Ne4 {[%emt 0:00:34]} 8. cxd4 {[%emt 0:00:05]} Bb6 {[%emt 0:01:32]} 9. Nc3 {[%emt 0:00:52]} O-O {[%emt 0:02:10]} 10. Be3 {[%emt 0:03:23] C54: Giuoco Piano: 4 c3 Nf6, main lines with 5 d4 and 5 d3.} Bg4 {[%emt 0:03:42]} 11. Be2 {[%emt 0:00:49]} f5 {[%emt 0:05:38] And now ...f4 would win.} 12. exf6 {[%emt 0:05:39] Black has an edge.} Nxf6 {[%emt 0:03:49]} ({Resist} 12... Qxf6 13. Nxd5 Qd6 14. Nc3 $14) 13. O-O {[%emt 0:02:58]} Ne7 {[%emt 0:03:04]} 14. Ne5 {[%emt 0:09:18]} Bxe2 {[%emt 0:01:57]} 15. Nxe2 {[%emt 0:00:13]} Nf5 {[%emt 0:00:20] [#]} 16. Nf4 $146 {[%emt 0:00:42]} ({Predecessor:} 16. Ng3 Nxe3 17. fxe3 c6 18. Qb3 Qe7 19. a4 Rab8 20. Nf5 Qe6 21. Nh4 Bc7 22. Nhf3 {0-1 (35) Nitish,B (2316)-Mitsis,G (2322) Anogia 2018}) 16... Qd6 {[%emt 0:02:44] Prevents Ne6.} (16... Ne4 {feels hotter.} 17. Ne6 Nxe3 18. fxe3 Rxf1+ 19. Qxf1 Qe7) 17. Qa4 {[%emt 0:06:55]} Rae8 {[%emt 0:06:03][%cal Of5d4]} 18. Nfd3 {[%emt 0:02:30]} Nxe3 {[%emt 0:02:39]} 19. fxe3 {[%emt 0:00:15]} c5 {[%emt 0:07:11] [#] ...cxd4 is the strong threat.} 20. Rae1 {[%emt 0:09:03]} c4 {[%emt 0:05:29]} 21. Qb4 $2 {[%emt 0:03:44]} ({White should try} 21. Nf2 $15) 21... Qc7 $19 {[%emt 0:15:31]} 22. Nf4 {[%emt 0:12:11]} Ba5 {[%emt 0:03:54]} 23. Qa3 {[%emt 0:02:54]} Bxe1 {[%emt 0:00:34]} 24. Rxe1 {[%emt 0:00:06]} a6 {[%emt 0:04:22]} 25. h4 {[%emt 0:02:53]} Rxe5 {[%emt 0:04:08]} 26. dxe5 {[%emt 0:01:33]} Qxe5 {[%emt 0:00:05] Strongly threatening ...d4.} 27. Qc3 {[%emt 0:01:14] Prevents d4.} Re8 {[%emt 0:00:52]} 28. Qxe5 {[%emt 0:00:52]} Rxe5 {[%emt 0:00:05][%mdl 4096] Endgame KRN-KRN} 29. Kf2 {[%emt 0:00:27]} h6 {[%emt 0:00:15][%cal Bh7h6,Bh6g5][%mdl 32]} 30. Ng6 {[%emt 0:03:08]} Re8 {[%emt 0:03:36]} 31. Re2 {[%emt 0:03:24]} Kf7 {[%emt 0:00:26]} 32. Nf4 {[%emt 0:02:00]} g5 {[%emt 0:00:08]} 33. hxg5 {[%emt 0:00:03]} hxg5 {[%emt 0:00:05]} 34. Nh3 {[%emt 0:00:09]} Kg6 {[%emt 0:00:12]} 35. Ke1 {[%emt 0:01:30]} Ne4 {[%emt 0:00:20]} 36. Kd1 {[%emt 0:01:38]} b5 {[%emt 0:01:25]} 37. Re1 {[%emt 0:04:45]} Nc5 {[%emt 0:02:51]} 38. Nf2 {[%emt 0:02:34]} (38. Re2 {was called for.}) 38... Rf8 {[%emt 0:00:06]} 39. Re2 {[%emt 0:05:21]} Nd3 {[%emt 0:03:29]} 40. Ng4 {[%emt 0:00:12]} Rf1+ {[%emt 0:00:21]} 41. Kc2 {[%emt 0:01:05]} Nb4+ {[%emt 0:00:37]} 42. Kc3 {[%emt 0:00:05]} Nxa2+ {[%emt 0:00:14]} 43. Kd4 {[%emt 0:00:29]} Kf5 {[%emt 0:06:26]} 44. Rf2+ {[%emt 0:05:15]} Rxf2 {[%emt 0:00:12]} 45. Nxf2 {[%emt 0:00:03] KN-KN} Nb4 {[%emt 0:01:00]} 46. g4+ {[%emt 0:01:05]} Ke6 {[%emt 0:00:17]} 47. e4 {[%emt 0:00:09]} Nc2+ {[%emt 0:03:16]} 48. Kc3 {[%emt 0:02:10]} Ne1 {[%emt 0:00:53] aiming for ...Nf3.} 49. Kd4 {[%emt 0:00:42]} Nf3+ {[%emt 0:07:11]} 50. Ke3 {[%emt 0:00:11]} Nh2 {[%emt 0:01:01]} 51. Kd4 {[%emt 0:01:47]} dxe4 {[%emt 0:00:07]} 52. Nxe4 {[%emt 0:00:04]} Nxg4 {[%emt 0:00:39]} 53. Nxg5+ {[%emt 0:00:06]} Kd6 {[%emt 0:00:06]} 54. Ne4+ {[%emt 0:00:25]} Kc6 {[%emt 0:00:05] Threatens to win with ...a5.} 55. b3 {[%emt 0:01:43]} cxb3 {[%emt 0:00:34]} 56. Kc3 {[%emt 0:00:07]} Kd5 {[%emt 0:00:52]} 57. Nd2 {[%emt 0:00:11]} Ne5 {[%emt 0:00:10]} 58. Nxb3 {[%emt 0:00:24]} Nc6 {[%emt 0:00:04]} 59. Nc1 {[%emt 0:00:45]} a5 {[%emt 0:00:27]} 60. Nd3 {[%emt 0:01:28]} Ne5 {[%emt 0:00:41]} 61. Nf4+ {[%emt 0:00:26]} Kc6 {[%emt 0:00:18]} 62. Ne6 {[%emt 0:00:14]} Kb6 {[%emt 0:00:53]} 63. Nd4 {[%emt 0:01:21]} Nc6 {[%emt 0:00:11]} 64. Ne6 {[%emt 0:00:48]} a4 {[%emt 0:00:35]} 65. Nf4 {[%emt 0:00:54]} b4+ {[%emt 0:02:49]} 66. Kc4 {[%emt 0:00:18]} Ka5 {[%emt 0:02:01]} 67. Nd3 {[%emt 0:00:15] [#]} a3 $2 {[%emt 0:00:25]} (67... b3 $1 {mates} 68. Kc3 Kb5 69. Nf2 Na5 70. Ne4 Nc4 71. Ng5 b2 72. Kc2 a3 73. Ne4 Kb4 74. Nc3 b1=Q+ 75. Kxb1 Kxc3 76. Ka2 Kb4 77. Ka1 Ne3 78. Kb1 Kc3 79. Kc1 Nc2 80. Kb1 Kb3 81. Kc1 a2 82. Kd2 a1=Q 83. Ke2 Qf6 84. Kd3 Qf3+ 85. Kd2 Qe3+ 86. Kd1 Qe1#) 68. Nxb4 $1 $11 {[%emt 0:00:07] The position is equal.} Nxb4 {[%emt 0:00:22]} 69. Kb3 {[%emt 0:00:06]} a2 {[%emt 0:00:21]} 70. Kb2 {[%emt 0:00:04]} Ka4 {[%emt 0:00:27]} 71. Ka1 {[%emt 0:02:20] Weighted Error Value: White=0.46/Black=0.01 (flawless)} 1/2-1/2

[Event "13th Chennai Open 2022"]
[Site "Chennai"]
[Date "2022.06.20"]
[Round "2.18"]
[White "Ravichandran, Siddharth"]
[Black "Praveen K B"]
[Result "1-0"]
[ECO "B52"]
[WhiteElo "2352"]
[BlackElo "1574"]
[Annotator "TA"]
[PlyCount "55"]
[EventDate "2022.06.19"]
[EventType "swiss"]
[EventCountry "IND"]
[SourceTitle "playchess.com"]
[Source "ChessBase"]
[SourceQuality "1"]
[TimeControl "5400+30"]

{[%evp 9,55,8,22,0,0,0,10,0,24,32,22,0,0,0,0,0,6,6,36,37,31,23,14,12,15,16,50,24,89,84,111,111,114,112,118,119,105,122,111,117,114,114,127,127,113,119,531,527]} 1. e4 {[%emt 0:00:06]} c5 {[%emt 0:00:20]} 2. Nf3 {[%emt 0:00:10]} d6 {[%emt 0:00:37]} 3. Bb5+ {[%emt 0:01:24]} Bd7 {[%emt 0:00:46]} 4. Bxd7+ {[%emt 0:00:09]} Qxd7 {[%emt 0:00:43]} 5. O-O {[%emt 0:00:18]} Nc6 {[%emt 0:01:23]} 6. Qe2 {[%emt 0:02:13] B52: Sicilian: Moscow Variation with 3...Bd7.} g6 {[%emt 0:04:53] is the legacy move (6...Nf6).} 7. c3 {[%emt 0:00:59]} Bg7 {[%emt 0:00:12] Against d4} 8. Rd1 {[%emt 0:00:22] The position is equal.} d5 {[%emt 0:05:04]} 9. exd5 {[%emt 0:04:13]} Qxd5 {[%emt 0:00:48]} 10. d4 {[%emt 0:00:11] [#]} Rd8 $146 {[%emt 0:12:19]} ({Predecessor:} 10... Nf6 11. Qb5 cxd4 12. Qxb7 Rb8 13. Qa6 Ne4 14. cxd4 e5 15. Qe2 Rd8 16. Nc3 Nxc3 17. bxc3 {1-0 (41) Cimer,E (2306)-Nejanky,M (2027) Villa Martelli 2017}) 11. Be3 {[%emt 0:05:42]} cxd4 {[%emt 0:02:56]} 12. Nxd4 {[%emt 0:15:59]} Bxd4 {[%emt 0:14:16]} 13. Bxd4 {[%emt 0:04:05]} Nxd4 {[%emt 0:07:01]} 14. Rxd4 {[%emt 0:00:11]} Qa5 {[%emt 0:00:18]} 15. Rxd8+ {[%emt 0:02:07]} Qxd8 {[%emt 0:02:12]} 16. Na3 {[%emt 0:00:18]} Nf6 {[%emt 0:07:29]} 17. Rd1 {[%emt 0:00:36]} Qa5 {[%emt 0:00:42]} 18. Qe3 {[%emt 0:19:44]} (18. Qf3 $5 {[%cal Rf3b7]}) 18... Qa4 {[%emt 0:16:49] Against Nc4} (18... h5 $11) 19. Rd4 $16 {[%emt 0:04:32]} Qa6 {[%emt 0:00:57]} 20. h3 {[%emt 0:11:12] White is more active.} h5 {[%emt 0:07:50]} 21. Qe5 $40 {[%emt 0:03:15][%cal Re5b8][%mdl 128] [#] White goes for the king.} O-O {[%emt 0:02:43]} 22. Qxe7 {[%emt 0:00:10] Strongly threatening Rd6.} Re8 {[%emt 0:00:41]} 23. Rd8 {[%emt 0:00:12]} Rxd8 {[%emt 0:00:50]} 24. Qxd8+ {[%emt 0:00:06]} Kg7 {[%emt 0:00:39]} 25. Qd4 {[%emt 0:00:25]} Qe6 {[%emt 0:03:14]} 26. Nc4 {[%emt 0:04:25]} b5 {[%emt 0:05:57]} 27. Nd6 {[%emt 0:00:26]} Qxa2 $2 {[%emt 0:01:32][%mdl 8192] [#]} (27... a6 $16 28. a4 bxa4) 28. Ne8+ {[%emt 0:21:00] Weighted Error Value: White=0.05 (flawless) /Black=0.44} 1-0